[Event "Titled Tuesday Blitz October 11 Late 2022"]
[White "Grinev, Valeriy"]
[Black "Kollars, Dmitrij"]
[WhiteFideId "14117517"]
[BlackFideId "12909572"]
[WhiteElo "2365"]
[BlackElo "2584"]
[Result "0-1"]
[Round "03"]
[TimeControl "180+1"]
[Date "2022.10.11"]
[WhiteClock "0:00:33"]
[BlackClock "0:01:35"]

1. d4 {[%clk 0:03:00]}  d5 {[%clk 0:02:57]} 2. c4 {[%clk 0:03:01]}  e6 {[%clk 0:02:57]} 3. Nc3 {[%clk 0:02:59]}  Nf6 {[%clk 0:02:57]} 4. cxd5 {[%clk 0:02:59]}  exd5 {[%clk 0:02:58]} 5. Bg5 {[%clk 0:02:59]}  c6 {[%clk 0:02:57]} 6. e3 {[%clk 0:02:59]}  Be7 {[%clk 0:02:56]} 7. Bd3 {[%clk 0:02:59]}  h6 {[%clk 0:02:56]} 8. Bh4 {[%clk 0:02:58]}  O-O {[%clk 0:02:56]} 9. Qc2 {[%clk 0:02:54]}  Ne8 {[%clk 0:02:55]} 10. Bxe7 {[%clk 0:02:48]}  Qxe7 {[%clk 0:02:56]} 11. Nf3 {[%clk 0:02:48]}  Nd6 {[%clk 0:02:54]} 12. O-O {[%clk 0:02:47]}  a5 {[%clk 0:02:50]} 13. a3 {[%clk 0:02:32]}  Nd7 {[%clk 0:02:48]} 14. Rab1 {[%clk 0:02:31]}  Nf6 {[%clk 0:02:41]} 15. b4 {[%clk 0:02:25]}  axb4 {[%clk 0:02:42]} 16. axb4 {[%clk 0:02:25]}  b5 {[%clk 0:02:41]} 17. Ne5 {[%clk 0:02:25]}  Bd7 {[%clk 0:02:36]} 18. Rfe1 {[%clk 0:02:13]}  Nc4 {[%clk 0:02:36]} 19. e4 {[%clk 0:02:09]}  Na3 {[%clk 0:02:34]} 20. Qb3 {[%clk 0:01:52]}  Nxb1 {[%clk 0:02:34]} 21. Qxb1 {[%clk 0:01:53]}  dxe4 {[%clk 0:02:30]} 22. Nxe4 {[%clk 0:01:53]}  Nxe4 {[%clk 0:02:29]} 23. Bxe4 {[%clk 0:01:54]}  Qd6 {[%clk 0:02:26]} 24. Rd1 {[%clk 0:01:31]}  Ra4 {[%clk 0:02:24]} 25. Nd3 {[%clk 0:01:26]}  Bg4 {[%clk 0:02:03]} 26. f3 {[%clk 0:01:26]}  Be6 {[%clk 0:02:00]} 27. Nc5 {[%clk 0:01:25]}  Ra7 {[%clk 0:01:56]} 28. Nxe6 {[%clk 0:01:09]}  Qxe6 {[%clk 0:01:47]} 29. Rc1 {[%clk 0:01:08]}  Qd6 {[%clk 0:01:42]} 30. Qb2 {[%clk 0:01:04]}  Rc7 {[%clk 0:01:37]} 31. Rc5 {[%clk 0:00:58]}  Rd8 {[%clk 0:01:35]} 32. d5 {[%clk 0:00:32]}  cxd5 {[%clk 0:01:36]} 33. Rxd5 {[%clk 0:00:32]}  Qb6+ {[%clk 0:01:36]} 34. Kf1 {[%clk 0:00:32]}  Rxd5 {[%clk 0:01:34]} 35. Bxd5 {[%clk 0:00:33]}  Qe3 {[%clk 0:01:35]} 0-1


[Site "https://www.chess.com"]

[Event "Titled Tuesday Blitz October 11 Late 2022"]
[White "Gubajdullin, Alexei"]
[Black "Donchenko, Alexander"]
[WhiteFideId "4141202"]
[BlackFideId "24603295"]
[WhiteElo "2200"]
[BlackElo "2572"]
[Result "0-1"]
[Round "03"]
[TimeControl "180+1"]
[Date "2022.10.11"]
[WhiteClock "0:00:11"]
[BlackClock "0:01:39"]

1. d4 {[%clk 0:03:00]}  Nf6 {[%clk 0:02:55]} 2. Nf3 {[%clk 0:03:01]}  e6 {[%clk 0:02:54]} 3. Bf4 {[%clk 0:03:01]}  c5 {[%clk 0:02:51]} 4. e3 {[%clk 0:03:02]}  b6 {[%clk 0:02:52]} 5. c3 {[%clk 0:03:00]}  Be7 {[%clk 0:02:52]} 6. h3 {[%clk 0:02:59]}  O-O {[%clk 0:02:52]} 7. Nbd2 {[%clk 0:02:59]}  d5 {[%clk 0:02:52]} 8. Bd3 {[%clk 0:02:58]}  Ba6 {[%clk 0:02:52]} 9. Bxa6 {[%clk 0:02:56]}  Nxa6 {[%clk 0:02:53]} 10. a4 {[%clk 0:02:56]}  Nb8 {[%clk 0:02:52]} 11. Ne5 {[%clk 0:02:54]}  Nfd7 {[%clk 0:02:51]} 12. a5 {[%clk 0:02:38]}  Nxe5 {[%clk 0:02:51]} 13. Bxe5 {[%clk 0:02:36]}  Nc6 {[%clk 0:02:49]} 14. axb6 {[%clk 0:02:34]}  Nxe5 {[%clk 0:02:48]} 15. dxe5 {[%clk 0:02:23]}  Qxb6 {[%clk 0:02:46]} 16. Ra2 {[%clk 0:02:20]}  Rfb8 {[%clk 0:02:43]} 17. O-O {[%clk 0:02:20]}  a5 {[%clk 0:02:43]} 18. Qg4 {[%clk 0:02:15]}  Qc7 {[%clk 0:02:40]} 19. Nf3 {[%clk 0:02:13]}  Rb5 {[%clk 0:02:36]} 20. Rd1 {[%clk 0:02:01]}  Rab8 {[%clk 0:02:33]} 21. Rd2 {[%clk 0:02:01]}  h6 {[%clk 0:02:28]} 22. h4 {[%clk 0:01:57]}  R8b7 {[%clk 0:02:26]} 23. e4 {[%clk 0:01:48]}  d4 {[%clk 0:02:18]} 24. cxd4 {[%clk 0:01:38]}  cxd4 {[%clk 0:02:19]} 25. Nxd4 {[%clk 0:01:34]}  Rxb2 {[%clk 0:02:15]} 26. Rdxb2 {[%clk 0:01:30]}  Rxb2 {[%clk 0:02:16]} 27. Rxb2 {[%clk 0:01:28]}  Qc1+ {[%clk 0:02:16]} 28. Kh2 {[%clk 0:01:27]}  Qxb2 {[%clk 0:02:17]} 29. Nc6 {[%clk 0:01:27]}  Bf8 {[%clk 0:02:16]} 30. Qf4 {[%clk 0:01:19]}  Qb5 {[%clk 0:02:08]} 31. Qc1 {[%clk 0:00:36]}  Bc5 {[%clk 0:02:06]} 32. Nd8 {[%clk 0:00:31]}  Bxf2 {[%clk 0:02:04]} 33. Qf4 {[%clk 0:00:24]}  Qd7 {[%clk 0:01:58]} 34. Nb7 {[%clk 0:00:21]}  Qxb7 {[%clk 0:01:56]} 35. Qxf2 {[%clk 0:00:21]}  Qxe4 {[%clk 0:01:57]} 36. Qc5 {[%clk 0:00:21]}  Qxh4+ {[%clk 0:01:57]} 37. Kg1 {[%clk 0:00:20]}  Qe1+ {[%clk 0:01:57]} 38. Kh2 {[%clk 0:00:20]}  Qb4 {[%clk 0:01:46]} 39. Qc8+ {[%clk 0:00:19]}  Kh7 {[%clk 0:01:46]} 40. Qc7 {[%clk 0:00:19]}  Qf4+ {[%clk 0:01:44]} 41. g3 {[%clk 0:00:18]}  Qf2+ {[%clk 0:01:44]} 42. Kh3 {[%clk 0:00:19]}  a4 {[%clk 0:01:44]} 43. Qa5 {[%clk 0:00:16]}  Qf1+ {[%clk 0:01:41]} 44. Kh2 {[%clk 0:00:14]}  Qe2+ {[%clk 0:01:41]} 45. Kh3 {[%clk 0:00:14]}  Qe4 {[%clk 0:01:40]} 46. Kh2 {[%clk 0:00:12]}  Kg6 {[%clk 0:01:40]} 47. Kh3 {[%clk 0:00:12]}  Kf5 {[%clk 0:01:39]} 48. Qa7 {[%clk 0:00:11]}  Qh1# {[%clk 0:01:39]} 0-1


[Site "https://www.chess.com"]

[Event "Titled Tuesday Blitz October 11 Late 2022"]
[White "Haszon, David"]
[Black "Obrien, Matthew"]
[WhiteFideId "733610"]
[BlackFideId "2059150"]
[WhiteElo "2211"]
[BlackElo "2531"]
[Result "0-1"]
[Round "03"]
[TimeControl "180+1"]
[Date "2022.10.12"]
[WhiteClock "0:00:23"]
[BlackClock "0:00:12"]

1. e4 {[%clk 0:03:00]}  c5 {[%clk 0:02:59]} 2. Nf3 {[%clk 0:02:59]}  d6 {[%clk 0:03:00]} 3. d4 {[%clk 0:02:59]}  cxd4 {[%clk 0:03:00]} 4. Nxd4 {[%clk 0:02:59]}  Nf6 {[%clk 0:03:01]} 5. f3 {[%clk 0:02:59]}  a6 {[%clk 0:03:02]} 6. c4 {[%clk 0:03:00]}  g6 {[%clk 0:03:02]} 7. Nc3 {[%clk 0:03:00]}  Bg7 {[%clk 0:03:03]} 8. Be3 {[%clk 0:03:00]}  O-O {[%clk 0:03:04]} 9. Be2 {[%clk 0:03:01]}  Nc6 {[%clk 0:03:05]} 10. O-O {[%clk 0:03:01]}  Nd7 {[%clk 0:03:05]} 11. Nxc6 {[%clk 0:02:52]}  bxc6 {[%clk 0:03:05]} 12. Qd2 {[%clk 0:02:53]}  Rb8 {[%clk 0:03:06]} 13. b3 {[%clk 0:02:53]}  Re8 {[%clk 0:03:05]} 14. Rfd1 {[%clk 0:02:51]}  Qa5 {[%clk 0:03:04]} 15. Rac1 {[%clk 0:02:51]}  Nc5 {[%clk 0:03:03]} 16. Bd4 {[%clk 0:02:48]}  Bxd4+ {[%clk 0:03:03]} 17. Qxd4 {[%clk 0:02:49]}  Qb4 {[%clk 0:03:02]} 18. e5 {[%clk 0:02:45]}  Ne6 {[%clk 0:03:00]} 19. Qe3 {[%clk 0:02:44]}  dxe5 {[%clk 0:02:53]} 20. Qxe5 {[%clk 0:02:45]}  Qc5+ {[%clk 0:02:52]} 21. Qxc5 {[%clk 0:02:43]}  Nxc5 {[%clk 0:02:53]} 22. Ne4 {[%clk 0:02:40]}  Nxe4 {[%clk 0:02:52]} 23. fxe4 {[%clk 0:02:41]}  a5 {[%clk 0:02:47]} 24. c5 {[%clk 0:02:36]}  Be6 {[%clk 0:02:44]} 25. Rd4 {[%clk 0:02:35]}  Rb4 {[%clk 0:02:42]} 26. Rcd1 {[%clk 0:02:33]}  Kg7 {[%clk 0:02:42]} 27. Kf2 {[%clk 0:02:26]}  Reb8 {[%clk 0:02:33]} 28. Ke3 {[%clk 0:02:24]}  g5 {[%clk 0:02:16]} 29. Rxb4 {[%clk 0:01:58]}  axb4 {[%clk 0:02:15]} 30. Rd4 {[%clk 0:01:58]}  Kf6 {[%clk 0:01:57]} 31. g3 {[%clk 0:01:45]}  Ke5 {[%clk 0:01:49]} 32. Rd2 {[%clk 0:01:39]}  h6 {[%clk 0:01:37]} 33. Rd4 {[%clk 0:01:38]}  g4 {[%clk 0:01:34]} 34. Bc4 {[%clk 0:01:36]}  Bxc4 {[%clk 0:01:28]} 35. Rxc4 {[%clk 0:01:37]}  e6 {[%clk 0:01:04]} 36. Rd4 {[%clk 0:01:34]}  Rb5 {[%clk 0:01:02]} 37. Rc4 {[%clk 0:01:29]}  f6 {[%clk 0:00:58]} 38. Rc2 {[%clk 0:01:26]}  h5 {[%clk 0:00:55]} 39. Rc4 {[%clk 0:01:26]}  Rb8 {[%clk 0:00:49]} 40. Rd4 {[%clk 0:01:22]}  Rb5 {[%clk 0:00:48]} 41. Rc4 {[%clk 0:01:22]}  Rb8 {[%clk 0:00:38]} 42. Rd4 {[%clk 0:01:11]}  Rb5 {[%clk 0:00:38]} 43. Kd3 {[%clk 0:01:02]}  f5 {[%clk 0:00:29]} 44. exf5 {[%clk 0:01:00]}  exf5 {[%clk 0:00:30]} 45. Kc4 {[%clk 0:00:59]}  Ra5 {[%clk 0:00:27]} 46. Rd2 {[%clk 0:00:54]}  Rb5 {[%clk 0:00:27]} 47. Re2+ {[%clk 0:00:53]}  Kf6 {[%clk 0:00:26]} 48. Rd2 {[%clk 0:00:41]}  Ke5 {[%clk 0:00:26]} 49. Rd6 {[%clk 0:00:41]}  Ra5 {[%clk 0:00:27]} 50. Kxb4 {[%clk 0:00:32]}  Rxa2 {[%clk 0:00:26]} 51. Rxc6 {[%clk 0:00:32]}  Rxh2 {[%clk 0:00:27]} 52. Rh6 {[%clk 0:00:30]}  h4 {[%clk 0:00:27]} 53. c6 {[%clk 0:00:29]}  hxg3 {[%clk 0:00:24]} 54. Rxh2 {[%clk 0:00:23]}  gxh2 {[%clk 0:00:23]} 55. c7 {[%clk 0:00:23]}  h1=Q {[%clk 0:00:23]} 56. c8=Q {[%clk 0:00:24]}  Qe4+ {[%clk 0:00:20]} 57. Ka3 {[%clk 0:00:24]}  Qd3 {[%clk 0:00:12]} 58. Qc7+ {[%clk 0:00:23]}  Qd6+ {[%clk 0:00:12]} 0-1


[Site "https://www.chess.com"]

[Event "Titled Tuesday Blitz October 11 Late 2022"]
[White "Holt, Conrad"]
[Black "Noboa Silva, Kevin"]
[WhiteFideId "2034387"]
[BlackFideId "3618471"]
[WhiteElo "2592"]
[BlackElo "2178"]
[Result "1-0"]
[Round "03"]
[TimeControl "180+1"]
[Date "2022.10.11"]
[WhiteClock "0:00:47"]
[BlackClock "0:00:03"]

1. d4 {[%clk 0:03:00]}  e6 {[%clk 0:02:59]} 2. c4 {[%clk 0:03:00]}  Bb4+ {[%clk 0:02:58]} 3. Nd2 {[%clk 0:02:58]}  a5 {[%clk 0:02:58]} 4. a3 {[%clk 0:02:55]}  Be7 {[%clk 0:02:56]} 5. e4 {[%clk 0:02:55]}  d5 {[%clk 0:02:57]} 6. cxd5 {[%clk 0:02:53]}  exd5 {[%clk 0:02:57]} 7. e5 {[%clk 0:02:53]}  c5 {[%clk 0:02:57]} 8. Bb5+ {[%clk 0:02:50]}  Bd7 {[%clk 0:02:53]} 9. Bxd7+ {[%clk 0:02:45]}  Qxd7 {[%clk 0:02:52]} 10. Ne2 {[%clk 0:02:43]}  Nc6 {[%clk 0:02:51]} 11. Nf3 {[%clk 0:02:42]}  Nh6 {[%clk 0:02:50]} 12. Bxh6 {[%clk 0:02:41]}  gxh6 {[%clk 0:02:51]} 13. dxc5 {[%clk 0:02:37]}  Bxc5 {[%clk 0:02:49]} 14. O-O {[%clk 0:02:36]}  Rg8 {[%clk 0:02:48]} 15. Rc1 {[%clk 0:02:29]}  Be7 {[%clk 0:02:46]} 16. Ng3 {[%clk 0:02:15]}  Rd8 {[%clk 0:02:34]} 17. Qd3 {[%clk 0:02:10]}  Rg6 {[%clk 0:02:28]} 18. Rfe1 {[%clk 0:02:07]}  Qg4 {[%clk 0:02:18]} 19. h3 {[%clk 0:02:03]}  Qe6 {[%clk 0:01:51]} 20. Nh5 {[%clk 0:01:59]}  Bg5 {[%clk 0:01:21]} 21. Nxg5 {[%clk 0:01:46]}  hxg5 {[%clk 0:01:21]} 22. f4 {[%clk 0:01:44]}  Ne7 {[%clk 0:01:04]} 23. Nf6+ {[%clk 0:01:44]}  Kf8 {[%clk 0:01:04]} 24. Nxh7+ {[%clk 0:01:44]}  Kg7 {[%clk 0:01:03]} 25. Nxg5 {[%clk 0:01:44]}  Qd7 {[%clk 0:00:58]} 26. e6 {[%clk 0:01:32]}  fxe6 {[%clk 0:00:58]} 27. Rxe6 {[%clk 0:01:25]}  Rxg5 {[%clk 0:00:49]} 28. Rxe7+ {[%clk 0:01:16]}  Qxe7 {[%clk 0:00:48]} 29. fxg5 {[%clk 0:01:09]}  Qxg5 {[%clk 0:00:47]} 30. Qd4+ {[%clk 0:01:08]}  Kg8 {[%clk 0:00:45]} 31. Re1 {[%clk 0:01:02]}  Qg7 {[%clk 0:00:16]} 32. Re5 {[%clk 0:00:54]}  b5 {[%clk 0:00:14]} 33. h4 {[%clk 0:00:54]}  Qh6 {[%clk 0:00:06]} 34. Rg5+ {[%clk 0:00:51]}  Kh7 {[%clk 0:00:05]} 35. Qd3+ {[%clk 0:00:47]}  Kh8 {[%clk 0:00:05]} 36. Qc3+ {[%clk 0:00:47]}  Kh7 {[%clk 0:00:05]} 37. Qc7+ {[%clk 0:00:47]}  Kh8 {[%clk 0:00:03]} 38. Qxd8+ {[%clk 0:00:47]} 1-0


[Site "https://www.chess.com"]

[Event "Titled Tuesday Blitz October 11 Late 2022"]
[White "Horobetz, Graham"]
[Black "Coelho, Ramyres Santana"]
[WhiteFideId "2047322"]
[BlackFideId "2120690"]
[WhiteElo "2558"]
[BlackElo "1888"]
[Result "1-0"]
[Round "03"]
[TimeControl "180+1"]
[Date "2022.10.12"]
[WhiteClock "0:02:28"]
[BlackClock "0:02:19"]

1. e4 {[%clk 0:02:59]}  c5 {[%clk 0:02:58]} 2. Nf3 {[%clk 0:02:59]}  d6 {[%clk 0:02:58]} 3. d4 {[%clk 0:02:59]}  cxd4 {[%clk 0:02:59]} 4. Nxd4 {[%clk 0:03:00]}  Nf6 {[%clk 0:03:00]} 5. Nc3 {[%clk 0:03:01]}  a6 {[%clk 0:03:00]} 6. Be3 {[%clk 0:03:01]}  e6 {[%clk 0:03:01]} 7. Be2 {[%clk 0:03:00]}  b5 {[%clk 0:03:01]} 8. Bf3 {[%clk 0:03:00]}  Bb7 {[%clk 0:03:02]} 9. e5 {[%clk 0:02:59]}  dxe5 {[%clk 0:02:52]} 10. Nxe6 {[%clk 0:02:29]}  Qxd1+ {[%clk 0:02:35]} 11. Rxd1 {[%clk 0:02:28]}  Bxf3 {[%clk 0:02:24]} 12. Nc7+ {[%clk 0:02:28]}  Ke7 {[%clk 0:02:19]} 13. Bc5# {[%clk 0:02:28]} 1-0


[Site "https://www.chess.com"]

[Event "Titled Tuesday Blitz October 11 Late 2022"]
[White "Indjic, Aleksandar"]
[Black "Wieczorek, Oskar"]
[WhiteFideId "911925"]
[BlackFideId "1133950"]
[WhiteElo "2592"]
[BlackElo "2404"]
[Result "0-1"]
[Round "03"]
[TimeControl "180+1"]
[Date "2022.10.11"]
[WhiteClock "0:00:18"]
[BlackClock "0:00:17"]

1. d4 {[%clk 0:02:59]}  Nf6 {[%clk 0:03:00]} 2. c4 {[%clk 0:02:58]}  c5 {[%clk 0:03:00]} 3. d5 {[%clk 0:02:58]}  g6 {[%clk 0:03:01]} 4. Nc3 {[%clk 0:02:57]}  d6 {[%clk 0:03:01]} 5. e4 {[%clk 0:02:58]}  Bg7 {[%clk 0:03:02]} 6. Nf3 {[%clk 0:02:52]}  Bg4 {[%clk 0:03:02]} 7. h3 {[%clk 0:02:49]}  Bxf3 {[%clk 0:03:01]} 8. Qxf3 {[%clk 0:02:50]}  O-O {[%clk 0:03:02]} 9. Bd3 {[%clk 0:02:49]}  e6 {[%clk 0:03:01]} 10. O-O {[%clk 0:02:47]}  exd5 {[%clk 0:03:00]} 11. exd5 {[%clk 0:02:48]}  Nbd7 {[%clk 0:03:00]} 12. Qd1 {[%clk 0:02:48]}  Nh5 {[%clk 0:02:51]} 13. Ne4 {[%clk 0:02:48]}  Ne5 {[%clk 0:02:50]} 14. Be2 {[%clk 0:02:41]}  Nf6 {[%clk 0:02:48]} 15. Nc3 {[%clk 0:02:38]}  a6 {[%clk 0:02:44]} 16. f4 {[%clk 0:02:37]}  Ned7 {[%clk 0:02:44]} 17. a4 {[%clk 0:02:33]}  Re8 {[%clk 0:02:29]} 18. Bd3 {[%clk 0:02:33]}  Qb6 {[%clk 0:02:23]} 19. g4 {[%clk 0:02:24]}  Re7 {[%clk 0:02:20]} 20. a5 {[%clk 0:02:18]}  Qc7 {[%clk 0:02:18]} 21. Bd2 {[%clk 0:02:17]}  Rae8 {[%clk 0:02:18]} 22. Kg2 {[%clk 0:02:10]}  h5 {[%clk 0:02:10]} 23. g5 {[%clk 0:02:09]}  Nh7 {[%clk 0:02:05]} 24. h4 {[%clk 0:02:06]}  Bd4 {[%clk 0:01:43]} 25. Re1 {[%clk 0:02:00]}  Rxe1 {[%clk 0:01:40]} 26. Bxe1 {[%clk 0:02:00]}  f5 {[%clk 0:01:25]} 27. Qc2 {[%clk 0:01:49]}  Nhf8 {[%clk 0:01:24]} 28. Ne2 {[%clk 0:01:48]}  Bg7 {[%clk 0:01:22]} 29. Bd2 {[%clk 0:01:44]}  Nb8 {[%clk 0:01:15]} 30. Ng3 {[%clk 0:01:44]}  Qf7 {[%clk 0:01:14]} 31. Kf3 {[%clk 0:01:41]}  Nbd7 {[%clk 0:01:14]} 32. Ra3 {[%clk 0:01:37]}  Bd4 {[%clk 0:01:12]} 33. Rb3 {[%clk 0:01:34]}  Qe7 {[%clk 0:01:11]} 34. Rxb7 {[%clk 0:01:27]}  Ne5+ {[%clk 0:01:11]} 35. fxe5 {[%clk 0:01:25]}  Qxb7 {[%clk 0:01:12]} 36. exd6 {[%clk 0:01:19]}  Qxb2 {[%clk 0:00:50]} 37. Qxb2 {[%clk 0:01:18]}  Bxb2 {[%clk 0:00:51]} 38. Ne2 {[%clk 0:01:18]}  Be5 {[%clk 0:00:45]} 39. Bc2 {[%clk 0:01:12]}  Bxd6 {[%clk 0:00:43]} 40. Nf4 {[%clk 0:01:11]}  Kf7 {[%clk 0:00:35]} 41. Be3 {[%clk 0:00:47]}  Nd7 {[%clk 0:00:32]} 42. Nd3 {[%clk 0:00:37]}  Re4 {[%clk 0:00:24]} 43. Ba4 {[%clk 0:00:28]}  Ne5+ {[%clk 0:00:14]} 44. Nxe5+ {[%clk 0:00:28]}  Bxe5 {[%clk 0:00:15]} 45. Bb3 {[%clk 0:00:26]}  Bd4 {[%clk 0:00:13]} 46. Bf4 {[%clk 0:00:25]}  Ke7 {[%clk 0:00:12]} 47. d6+ {[%clk 0:00:26]}  Kd8 {[%clk 0:00:12]} 48. Ba4 {[%clk 0:00:20]}  Be5 {[%clk 0:00:12]} 49. Bxe5 {[%clk 0:00:16]}  Rxe5 {[%clk 0:00:13]} 50. Bc6 {[%clk 0:00:16]}  Re6 {[%clk 0:00:13]} 51. Kf4 {[%clk 0:00:16]}  Rxd6 {[%clk 0:00:13]} 52. Bd5 {[%clk 0:00:16]}  Rxd5 {[%clk 0:00:13]} 53. cxd5 {[%clk 0:00:16]}  Kd7 {[%clk 0:00:12]} 54. Ke5 {[%clk 0:00:16]}  Ke7 {[%clk 0:00:12]} 55. d6+ {[%clk 0:00:16]}  Kd7 {[%clk 0:00:13]} 56. Kd5 {[%clk 0:00:17]}  c4 {[%clk 0:00:14]} 57. Kxc4 {[%clk 0:00:17]}  Kxd6 {[%clk 0:00:15]} 58. Kd4 {[%clk 0:00:17]}  Ke6 {[%clk 0:00:15]} 59. Kc5 {[%clk 0:00:17]}  f4 {[%clk 0:00:15]} 60. Kd4 {[%clk 0:00:17]}  Kf5 {[%clk 0:00:16]} 61. Kd3 {[%clk 0:00:18]}  Kg4 {[%clk 0:00:16]} 62. Ke4 {[%clk 0:00:18]}  f3 {[%clk 0:00:16]} 63. Ke3 {[%clk 0:00:18]}  Kg3 {[%clk 0:00:17]} 0-1


[Site "https://www.chess.com"]

[Event "Titled Tuesday Blitz October 11 Late 2022"]
[White "Izuzquiza Gonzalez, Javier"]
[Black "Martin Carmona, Gaston Manuel"]
[WhiteFideId "3101029"]
[BlackFideId "22284567"]
[WhiteElo "2034"]
[BlackElo "2235"]
[Result "0-1"]
[Round "03"]
[TimeControl "180+1"]
[Date "2022.10.12"]
[WhiteClock "0:01:49"]
[BlackClock "0:01:41"]

1. d4 {[%clk 0:03:00]}  Nf6 {[%clk 0:02:59]} 2. c4 {[%clk 0:03:01]}  g6 {[%clk 0:02:57]} 3. Nf3 {[%clk 0:03:00]}  Bg7 {[%clk 0:02:57]} 4. g3 {[%clk 0:03:00]}  d6 {[%clk 0:02:58]} 5. Bg2 {[%clk 0:03:00]}  O-O {[%clk 0:02:59]} 6. O-O {[%clk 0:03:01]}  Nc6 {[%clk 0:03:00]} 7. Nc3 {[%clk 0:03:00]}  e5 {[%clk 0:03:00]} 8. d5 {[%clk 0:02:59]}  Ne7 {[%clk 0:03:00]} 9. Ne1 {[%clk 0:03:00]}  Nd7 {[%clk 0:03:01]} 10. Nd3 {[%clk 0:03:00]}  f5 {[%clk 0:03:00]} 11. e4 {[%clk 0:03:00]}  Nf6 {[%clk 0:02:59]} 12. f4 {[%clk 0:02:59]}  fxe4 {[%clk 0:02:49]} 13. Nxe4 {[%clk 0:02:59]}  Nxe4 {[%clk 0:02:49]} 14. Bxe4 {[%clk 0:02:58]}  Bh3 {[%clk 0:02:47]} 15. Bg2 {[%clk 0:02:52]}  Bxg2 {[%clk 0:02:47]} 16. Kxg2 {[%clk 0:02:52]}  exf4 {[%clk 0:02:26]} 17. Bxf4 {[%clk 0:02:53]}  Nf5 {[%clk 0:02:25]} 18. Qd2 {[%clk 0:02:48]}  Qd7 {[%clk 0:02:24]} 19. Rae1 {[%clk 0:02:46]}  Rae8 {[%clk 0:02:23]} 20. b3 {[%clk 0:02:42]}  h6 {[%clk 0:02:17]} 21. Qc1 {[%clk 0:02:14]}  g5 {[%clk 0:02:14]} 22. Bd2 {[%clk 0:02:14]}  Rxe1 {[%clk 0:02:04]} 23. Rxe1 {[%clk 0:02:13]}  Nd4 {[%clk 0:01:46]} 24. Rf1 {[%clk 0:02:11]}  Qg4 {[%clk 0:01:41]} 25. Rxf8+ {[%clk 0:02:06]}  Bxf8 {[%clk 0:01:42]} 26. Qf1 {[%clk 0:01:54]}  Qe4+ {[%clk 0:01:42]} 27. Kg1 {[%clk 0:01:49]}  Nf3+ {[%clk 0:01:41]} 0-1


[Site "https://www.chess.com"]

[Event "Titled Tuesday Blitz October 11 Late 2022"]
[White "Joubert, Dantelle"]
[Black "Jimenez, Joaquin"]
[WhiteFideId "14310813"]
[BlackFideId "109860"]
[WhiteElo "1507"]
[BlackElo "2163"]
[Result "0-1"]
[Round "03"]
[TimeControl "180+1"]
[Date "2022.10.12"]
[WhiteClock "0:00:01"]
[BlackClock "0:00:29"]

1. d4 {[%clk 0:02:59]}  Nf6 {[%clk 0:02:58]} 2. c4 {[%clk 0:02:57]}  g6 {[%clk 0:02:57]} 3. Nc3 {[%clk 0:02:57]}  Bg7 {[%clk 0:02:57]} 4. e4 {[%clk 0:02:56]}  d6 {[%clk 0:02:58]} 5. Nf3 {[%clk 0:02:56]}  O-O {[%clk 0:02:58]} 6. Be2 {[%clk 0:02:55]}  Na6 {[%clk 0:02:58]} 7. O-O {[%clk 0:02:51]}  e5 {[%clk 0:02:58]} 8. dxe5 {[%clk 0:02:42]}  dxe5 {[%clk 0:02:57]} 9. Qxd8 {[%clk 0:02:41]}  Rxd8 {[%clk 0:02:56]} 10. Bg5 {[%clk 0:02:41]}  Re8 {[%clk 0:02:50]} 11. h3 {[%clk 0:02:32]}  h6 {[%clk 0:02:47]} 12. Be3 {[%clk 0:02:31]}  c6 {[%clk 0:02:46]} 13. a3 {[%clk 0:02:29]}  Be6 {[%clk 0:02:46]} 14. Rfd1 {[%clk 0:02:27]}  Nh5 {[%clk 0:02:44]} 15. Bf1 {[%clk 0:01:59]}  Nf4 {[%clk 0:02:40]} 16. Kh2 {[%clk 0:01:57]}  g5 {[%clk 0:02:33]} 17. g3 {[%clk 0:01:55]}  Ng6 {[%clk 0:02:33]} 18. Nd2 {[%clk 0:01:48]}  Bf8 {[%clk 0:02:23]} 19. Nb3 {[%clk 0:01:47]}  b6 {[%clk 0:02:21]} 20. Nd2 {[%clk 0:01:41]}  Rad8 {[%clk 0:02:17]} 21. b4 {[%clk 0:01:34]}  Nc7 {[%clk 0:02:07]} 22. Nf3 {[%clk 0:01:31]}  Bc8 {[%clk 0:02:04]} 23. b5 {[%clk 0:01:00]}  Bb7 {[%clk 0:01:54]} 24. bxc6 {[%clk 0:00:59]}  Bxc6 {[%clk 0:01:54]} 25. Nd5 {[%clk 0:00:58]}  Bxd5 {[%clk 0:01:41]} 26. cxd5 {[%clk 0:00:58]}  Bd6 {[%clk 0:01:39]} 27. Rdc1 {[%clk 0:00:52]}  Rc8 {[%clk 0:01:32]} 28. Rc6 {[%clk 0:00:52]}  Red8 {[%clk 0:01:29]} 29. Rac1 {[%clk 0:00:32]}  Ne7 {[%clk 0:01:18]} 30. R6c3 {[%clk 0:00:26]}  Ne8 {[%clk 0:01:10]} 31. Ba6 {[%clk 0:00:24]}  Rxc3 {[%clk 0:01:08]} 32. Rxc3 {[%clk 0:00:25]}  Nf6 {[%clk 0:01:07]} 33. Nd2 {[%clk 0:00:24]}  Kg7 {[%clk 0:01:02]} 34. Kg2 {[%clk 0:00:15]}  Nd7 {[%clk 0:01:01]} 35. Nb3 {[%clk 0:00:12]}  f5 {[%clk 0:00:57]} 36. f3 {[%clk 0:00:10]}  Nf6 {[%clk 0:00:54]} 37. Nd2 {[%clk 0:00:09]}  Rd7 {[%clk 0:00:46]} 38. Bd3 {[%clk 0:00:03]}  Nexd5 {[%clk 0:00:41]} 39. exd5 {[%clk 0:00:03]}  Nxd5 {[%clk 0:00:41]} 40. Bb5 {[%clk 0:00:01]}  Rd8 {[%clk 0:00:30]} 41. Rc6 {[%clk 0:00:01]}  Nxe3+ {[%clk 0:00:29]} 0-1


[Site "https://www.chess.com"]

[Event "Titled Tuesday Blitz October 11 Late 2022"]
[White "Kobla, Vishal"]
[Black "Al Hosani, Omran"]
[WhiteFideId "2078457"]
[BlackFideId "9308733"]
[WhiteElo "1972"]
[BlackElo "2167"]
[Result "0-1"]
[Round "03"]
[TimeControl "180+1"]
[Date "2022.10.12"]
[WhiteClock "0:00:28"]
[BlackClock "0:02:02"]

1. e4 {[%clk 0:03:00]}  c5 {[%clk 0:02:58]} 2. Nf3 {[%clk 0:03:01]}  Nc6 {[%clk 0:02:58]} 3. d4 {[%clk 0:03:01]}  cxd4 {[%clk 0:02:59]} 4. Nxd4 {[%clk 0:03:02]}  Nf6 {[%clk 0:02:59]} 5. Nc3 {[%clk 0:03:02]}  e5 {[%clk 0:03:00]} 6. Ndb5 {[%clk 0:03:02]}  d6 {[%clk 0:03:00]} 7. Bg5 {[%clk 0:03:02]}  a6 {[%clk 0:03:00]} 8. Na3 {[%clk 0:03:02]}  Be7 {[%clk 0:02:59]} 9. Nc4 {[%clk 0:02:58]}  Be6 {[%clk 0:02:59]} 10. Ne3 {[%clk 0:02:57]}  O-O {[%clk 0:02:58]} 11. Bxf6 {[%clk 0:02:32]}  Bxf6 {[%clk 0:02:59]} 12. Bc4 {[%clk 0:02:33]}  b5 {[%clk 0:02:56]} 13. Bd5 {[%clk 0:02:29]}  Rc8 {[%clk 0:02:56]} 14. O-O {[%clk 0:02:25]}  Bg5 {[%clk 0:02:52]} 15. Nf5 {[%clk 0:02:18]}  b4 {[%clk 0:02:48]} 16. Ne2 {[%clk 0:02:11]}  Bxd5 {[%clk 0:02:45]} 17. Qxd5 {[%clk 0:02:04]}  Ne7 {[%clk 0:02:45]} 18. Nxe7+ {[%clk 0:01:54]}  Qxe7 {[%clk 0:02:46]} 19. c3 {[%clk 0:01:55]}  Rc5 {[%clk 0:02:42]} 20. Qd3 {[%clk 0:01:50]}  a5 {[%clk 0:02:41]} 21. Rad1 {[%clk 0:01:30]}  Rd8 {[%clk 0:02:36]} 22. g3 {[%clk 0:01:19]}  g6 {[%clk 0:02:25]} 23. f4 {[%clk 0:01:15]}  exf4 {[%clk 0:02:24]} 24. gxf4 {[%clk 0:01:16]}  Bf6 {[%clk 0:02:24]} 25. c4 {[%clk 0:01:03]}  Bxb2 {[%clk 0:02:20]} 26. e5 {[%clk 0:01:01]}  Qa7 {[%clk 0:02:12]} 27. Qe3 {[%clk 0:00:46]}  a4 {[%clk 0:02:05]} 28. exd6 {[%clk 0:00:45]}  Rg5+ {[%clk 0:02:05]} 29. fxg5 {[%clk 0:00:43]}  Qxe3+ {[%clk 0:02:05]} 30. Rf2 {[%clk 0:00:44]}  b3 {[%clk 0:02:04]} 31. axb3 {[%clk 0:00:43]}  a3 {[%clk 0:02:04]} 32. c5 {[%clk 0:00:31]}  Qxc5 {[%clk 0:02:02]} 33. d7 {[%clk 0:00:28]}  a2 {[%clk 0:02:02]} 0-1


[Site "https://www.chess.com"]